fUST/lending_fUST_20250302
["ID","MTS","AMOUNT","RATE_DAILY","PERIOD"]
[354972016,1740851442751,-500.0,0.00025749,2]
[354972018,1740851442762,-500.0,0.00025749,2]
[354972020,1740851442772,-500.0,0.00025749,2]
[354972022,1740851442781,-500.0,0.00025749,2]
[354972024,1740851442791,-562.23,0.00025749,2]
[354972026,1740851442800,-1145.82,0.00025749,2]
[354972028,1740851442809,-1262.77,0.00025749,2]
[354972030,1740851442819,-500.0,0.00025749,2]
[354972032,1740851442829,-500.0,0.00025749,2]
[354972034,1740851442839,-548.77044621,0.00025749,2]
[354972036,1740851442850,-522.13,0.00025749,2]
[354972038,1740851442860,-500.0,0.00025749,2]
[354972040,1740851442870,-500.0,0.00025749,2]
[354972042,1740851442879,-500.0,0.00025749,2]
[354972044,1740851442888,-500.0,0.00025749,2]
[354972046,1740851442898,-619.96,0.00025749,2]
[354972048,1740851442907,-500.0,0.00025749,2]
[354972050,1740851442917,-1837.38,0.00025749,2]
[354972052,1740851442929,-502.9266679,0.00025749,2]
[354972054,1740851442938,-1385.03,0.00025749,2]
[354972056,1740851442951,-500.0,0.00025749,2]
[354972058,1740851442961,-500.0,0.00025749,2]
[354972060,1740851442971,-1657.86,0.00025749,2]
[354972062,1740851442980,-1860.6,0.00025749,2]
[354972064,1740851442989,-1860.6,0.00025749,2]
[354972066,1740851442998,-1860.6,0.00025749,2]
[354972069,1740851443008,-1860.6,0.00025749,2]
[354972071,1740851443018,-1860.6,0.00025749,2]
[354972074,1740851443027,-1860.6,0.00025749,2]
[354972076,1740851443037,-1860.6,0.00025749,2]
[354972078,1740851443046,-500.0,0.00025749,2]
[354972080,1740851443056,-500.0,0.00025749,2]
[354972082,1740851443065,-500.0,0.00025749,2]
[354972084,1740851443076,-500.0,0.00025749,2]
[354972087,1740851443086,-1085.37,0.00025749,2]
[354972089,1740851443097,-659.82,0.00025749,2]
[354972092,1740851443107,-629.88,0.00025749,2]
[354972094,1740851443116,-500.0,0.00025749,2]
[354972096,1740851443126,-500.0,0.00025749,2]
[354972098,1740851443136,-500.0,0.00025749,2]
[354972100,1740851443146,-580.75058238,0.00025749,2]
[354972102,1740851443156,-506.57766474,0.00025749,2]
[354972104,1740851443166,-767.12,0.00025749,2]
[354972106,1740851443176,-510.81,0.00025749,2]
[354972108,1740851443185,-500.0,0.00025749,2]
[354972110,1740851443196,-500.0,0.00025749,2]
[354972112,1740851443206,-682.79,0.00025749,2]
[354972114,1740851443216,-500.0,0.00025749,2]
[354972117,1740851443227,-1000.0,0.00025749,2]
[354972119,1740851443237,-500.0,0.00025749,2]
[354972121,1740851443247,-500.0,0.00025749,2]
[354972123,1740851443257,-533.47922802,0.00025749,2]
[354972125,1740851443267,-500.0,0.00025749,2]
[354972127,1740851443277,-500.0,0.00025749,2]
[354972129,1740851443287,-500.0,0.00025749,2]
[354972131,1740851443297,-500.0,0.00025749,2]
[354972133,1740851443307,-500.0,0.00025749,2]
[354972135,1740851443317,-733.96,0.00025749,2]
[354972137,1740851443327,-500.0,0.00025749,2]
[354972139,1740851443336,-500.0,0.00025749,2]
[354972141,1740851443346,-500.0,0.00025749,2]
[354972143,1740851443356,-500.0,0.00025749,2]
[354972145,1740851443365,-500.0,0.00025749,2]
[354972148,1740851443375,-500.0,0.00025749,2]
[354972150,1740851443385,-500.0,0.00025749,2]
[354972152,1740851443395,-500.0,0.00025749,2]
[354972154,1740851443406,-721.31,0.00025749,2]
[354972156,1740851443415,-646.35,0.00025749,2]
[354972158,1740851443425,-3224.5,0.00025749,2]
[354972160,1740851443435,-500.0,0.00025749,2]
[354972162,1740851443444,-500.0,0.00025749,2]
[354972165,1740851443454,-500.0,0.00025749,2]
[354972167,1740851443465,-500.0,0.00025749,2]
[354972169,1740851443474,-500.0,0.00025749,2]
[354972172,1740851443485,-500.0,0.00025749,2]
[354972175,1740851443495,-500.0,0.00025749,2]
[354972178,1740851443505,-500.0,0.00025749,2]
[354972181,1740851443514,-2067.47,0.00025749,2]
[354972184,1740851443524,-500.0,0.00025749,2]
[354972187,1740851443534,-517.12662447,0.00025749,2]
[354972190,1740851443543,-500.0,0.00025749,2]
[354972192,1740851443553,-500.0,0.00025749,2]
[354972194,1740851443563,-510.64557622,0.00025749,2]
[354972196,1740851443572,-500.0,0.00025749,2]
[354972199,1740851443582,-2213.69,0.00025749,2]
[354972201,1740851443592,-500.0,0.00025749,2]
[354972203,1740851443602,-500.0,0.00025749,2]
[354972205,1740851443612,-500.0,0.00025749,2]
[354972207,1740851443622,-500.0,0.00025749,2]
[354972209,1740851443632,-500.0,0.00025749,2]
[354972211,1740851443642,-500.0,0.00025749,2]
[354972213,1740851443652,-500.0,0.00025749,2]
[354972215,1740851443661,-500.0,0.00025749,2]
[354972217,1740851443671,-500.0,0.00025749,2]
[354972219,1740851443681,-500.0,0.00025749,2]
[354972221,1740851443691,-500.0,0.00025749,2]
[354972223,1740851443701,-500.0,0.00025749,2]
[354972225,1740851443710,-783.39,0.00025749,2]
[354972227,1740851443720,-500.0,0.00025749,2]
[354972230,1740851443730,-500.0,0.00025749,2]
[354972232,1740851443739,-580.29,0.00025749,2]
[354972234,1740851443749,-608.55,0.00025749,2]
[354972236,1740851443759,-500.0,0.00025749,2]
[354972238,1740851443768,-500.0,0.00025749,2]
[354972240,1740851443778,-500.0,0.00025749,2]
[354972242,1740851443787,-353.92944789,0.00025749,2]
[354972244,1740851443796,-1079.07,0.00025749,2]
[354972246,1740851443806,-500.0,0.00025749,2]
[354972248,1740851443816,-505.40251695,0.00025749,2]
[354972250,1740851443825,-562.95,0.00025749,2]
[354972252,1740851443835,-616.26,0.00025749,2]
[354972254,1740851443847,-659.72,0.00025749,2]
[354972256,1740851443857,-500.0,0.00025749,2]
[354972258,1740851443867,-500.0,0.00025749,2]
[354972260,1740851443877,-500.0,0.00025749,2]
[354972262,1740851443886,-500.0,0.00025749,2]
[354972264,1740851443897,-1224.22,0.00025749,2]
[354972265,1740851443907,-500.0,0.00025749,2]
[354972266,1740851443917,-500.0,0.00025749,2]
[354972267,1740851443929,-500.0,0.00025749,2]
[354972268,1740851443939,-500.0,0.00025749,2]
[354972269,1740851443949,-657.69,0.00025749,2]
[354972270,1740851443958,-500.0,0.00025749,2]
[354972271,1740851443968,-579.99,0.00025749,2]
[354972272,1740851443978,-500.0,0.00025749,2]
[354972273,1740851443987,-500.0,0.00025749,2]
[354972274,1740851443997,-517.70690516,0.00025749,2]
[354972275,1740851444006,-500.0,0.00025749,2]
[354972276,1740851444016,-501.68550757,0.00025749,2]
[354972277,1740851444025,-2972.26,0.00025749,2]
[354972278,1740851444036,-736.79,0.00025749,2]
[354972279,1740851444045,-500.0,0.00025749,2]
[354972280,1740851444055,-500.0,0.00025749,2]
[354972281,1740851444065,-500.0,0.00025749,2]
[354972282,1740851444075,-500.0,0.00025749,2]
[354972283,1740851444085,-500.0,0.00025749,2]
[354972284,1740851444095,-530.68,0.00025749,2]
[354972285,1740851444104,-500.0,0.00025749,2]
[354972286,1740851444114,-603.09,0.00025749,2]
[354972287,1740851444124,-500.0,0.00025749,2]
[354972288,1740851444134,-500.0,0.00025749,2]
[354972289,1740851444145,-500.0,0.00025749,2]
[354972290,1740851444155,-634.47852463,0.00025749,2]
[354972291,1740851444165,-500.0,0.00025749,2]
[354972292,1740851444175,-500.0,0.00025749,2]
[354972293,1740851444185,-500.0,0.00025749,2]
[354972294,1740851444195,-542.76,0.00025749,2]
[354972295,1740851444205,-1009.99,0.00025749,2]
[354972296,1740851444215,-500.0,0.00025749,2]
[354972297,1740851444227,-913.72,0.00025749,2]
[354972298,1740851444238,-500.0,0.00025749,2]
[354972299,1740851444248,-500.0,0.00025749,2]
[354972300,1740851444259,-500.0,0.00025749,2]
[354972301,1740851444270,-500.0,0.00025749,2]
[354972302,1740851444280,-500.0,0.00025749,2]
[354972303,1740851444290,-500.0,0.00025749,2]
[354972304,1740851444303,-500.0,0.00025749,2]
[354972305,1740851444314,-500.0,0.00025749,2]
[354972306,1740851444324,-500.0,0.00025749,2]
[354972307,1740851444334,-500.0,0.00025749,2]
[354972308,1740851444344,-472.71977151,0.00025749,2]
[354972309,1740851444355,-500.0,0.00025749,2]
[354972310,1740851444365,-500.0,0.00025749,2]
[354972311,1740851444376,-1174.31,0.00025749,2]
[354972312,1740851444386,-510.39520217,0.00025749,2]
[354972313,1740851444396,-500.0,0.00025749,2]
[354972314,1740851444407,-883.18,0.00025749,2]
[354972316,1740851444418,-500.0,0.00025749,2]
[354972317,1740851444428,-413.93583879,0.00025749,2]
[354972320,1740851444438,-500.0,0.00025749,2]
[354972321,1740851444449,-505.41650911,0.00025749,2]
[354972322,1740851444458,-500.0,0.00025749,2]
[354972323,1740851444468,-500.0,0.00025749,2]
[354972324,1740851444480,-829.05,0.00025749,2]
[354972325,1740851444490,-502.19218738,0.00025749,2]
[354972326,1740851444501,-663.57,0.00025749,2]
[354972327,1740851444511,-1506.85,0.00025749,2]
[354972328,1740851444521,-500.0,0.00025749,2]
[354972329,1740851444532,-1958.58,0.00025749,2]
[354972330,1740851444756,-1262.39,0.00025749,2]
[354972331,1740851444767,-500.0,0.00025749,2]
[354972332,1740851444777,-500.0,0.00025749,2]
[354972333,1740851444788,-444.73352121,0.00025749,2]
[354972334,1740851444798,-5774.3,0.00025749,2]
[354972335,1740851444808,-500.0,0.00025749,2]
[354972336,1740851444818,-627.06,0.00025749,2]
[354972337,1740851444828,-500.0,0.00025749,2]
[354972338,1740851444838,-500.0,0.00025749,2]
[354972339,1740851444852,-500.0,0.00025749,2]
[354972340,1740851444862,-502.85480777,0.00025749,2]
[354972341,1740851444872,-503.4512173,0.00025749,2]
[354972342,1740851444883,-500.0,0.00025749,2]
[354972343,1740851444893,-1512.17,0.00025749,2]
[354972344,1740851444903,-500.0,0.00025749,2]
[354972345,1740851444913,-500.0,0.0002575,2]
[354972346,1740851444924,-500.0,0.0002575,2]
[354972347,1740851444934,-500.0,0.0002575,2]
[354972348,1740851444944,-501.90072505,0.0002575,2]
[354972349,1740851444953,-500.0,0.0002575,2]
[354972350,1740851444963,-500.0,0.0002575,2]
[354972351,1740851444976,-500.0,0.0002575,2]
[354972352,1740851444986,-500.0,0.0002575,2]
[354972353,1740851444996,-500.0,0.0002575,2]
[354972354,1740851445007,-500.0,0.0002575,2]
[354972355,1740851445017,-500.0,0.0002575,2]
[354972356,1740851445027,-500.0,0.0002575,2]
[354972357,1740851445037,-500.0,0.0002575,2]
[354972358,1740851445047,-500.0,0.0002575,2]
[354972359,1740851445058,-500.0,0.0002575,2]
[354972360,1740851445068,-500.0,0.0002575,2]
[354972361,1740851445078,-500.0,0.0002575,2]
[354972362,1740851445088,-237.51748074,0.0002575,2]
[354972363,1740851445098,-500.0,0.0002575,2]
[354972364,1740851445108,-500.0,0.0002575,2]
[354972365,1740851445118,-500.0,0.0002575,2]
[354972366,1740851445128,-500.0,0.0002575,2]
[354972367,1740851445138,-534.51152598,0.0002575,2]
[354972368,1740851445148,-500.0,0.0002575,2]
[354972369,1740851445158,-522.16254698,0.0002575,2]
[354972370,1740851445168,-505.11530453,0.0002575,2]
[354972371,1740851445179,-500.0,0.0002575,2]
[354972372,1740851445189,-367.71920292,0.0002575,2]
[354972373,1740851445199,-500.0,0.0002575,2]
[354972374,1740851445216,-500.0,0.0002575,2]
[354972375,1740851445228,-500.0,0.0002575,2]
[354972376,1740851445239,-500.0,0.0002575,2]
[354972377,1740851445251,-500.0,0.0002575,2]
[354972378,1740851445262,-500.0,0.0002575,2]
[354972379,1740851445273,-736.59,0.0002575,2]
[354972380,1740851445284,-500.0,0.0002575,2]
[354972381,1740851445294,-500.0,0.0002575,2]
[354972382,1740851445306,-654.89,0.0002575,2]
[354972383,1740851445317,-407.07592528,0.0002575,2]
[354972384,1740851445328,-500.0,0.0002575,2]
[354972385,1740851445339,-500.0,0.0002575,2]
[354972386,1740851445350,-500.0,0.0002575,2]
[354972387,1740851445360,-500.0,0.0002575,2]
[354972388,1740851445371,-500.0,0.0002575,2]
[354972389,1740851445382,-500.0,0.0002575,2]
[354972390,1740851445392,-500.0,0.0002575,2]
[354972391,1740851445403,-1860.6,0.0002575,2]
[354972392,1740851445414,-1860.6,0.0002575,2]
[354972393,1740851445425,-1860.6,0.0002575,2]
[354972394,1740851445435,-1860.6,0.0002575,2]
[354972395,1740851445446,-1860.6,0.0002575,2]
[354972396,1740851445456,-1860.6,0.0002575,2]
[354972397,1740851445467,-1860.6,0.0002575,2]
[354972398,1740851445480,-1860.6,0.0002575,2]
[354972399,1740851445491,-1860.6,0.0002575,2]
[354972400,1740851445502,-1860.6,0.0002575,2]
[354972401,1740851445513,-1860.6,0.0002575,2]
[354972402,1740851445524,-1860.6,0.0002575,2]
[354972403,1740851445535,-1860.6,0.0002575,2]
[354972404,1740851445546,-1860.6,0.0002575,2]
[354972405,1740851445557,-1860.6,0.0002575,2]
[354972406,1740851445568,-1860.61,0.0002575,2]
[354972414,1740851445842,-500.0,0.0002575,2]
[354972419,1740851445868,-500.0,0.0002575,2]
[354972422,1740851445878,-500.0,0.0002575,2]
[354972426,1740851445890,-1370.44,0.0002575,2]
[354972429,1740851445900,-1864.2,0.0002575,2]
[354972433,1740851445910,-725.73,0.0002575,2]
[354972436,1740851445920,-804.16,0.0002575,2]
[354972439,1740851445934,-658.74,0.0002575,2]
[354972441,1740851445945,-1611.3,0.0002575,2]
[354972444,1740851445955,-500.0,0.0002575,2]
[354972446,1740851445965,-500.0,0.0002575,2]
[354972448,1740851445974,-500.0,0.0002575,2]
[354972450,1740851445984,-500.0,0.0002575,2]
[354972452,1740851445994,-500.0,0.0002575,2]
[354972454,1740851446003,-500.0,0.0002575,2]
[354972456,1740851446012,-500.0,0.0002575,2]
[354972458,1740851446023,-558.88,0.0002575,2]
[354972460,1740851446032,-340.55587189,0.0002575,2]
[354972462,1740851446042,-505.40143779,0.0002575,2]
[354972464,1740851446052,-2975.03,0.0002575,2]
[354972466,1740851446062,-1800.75,0.0002575,2]
[354972468,1740851446071,-500.0,0.0002575,2]
[354972470,1740851446081,-500.0,0.00025751,2]
[354972472,1740851446090,-500.0,0.00025751,2]
[354972474,1740851446100,-500.0,0.00025751,2]
[354972476,1740851446110,-500.0,0.00025751,2]
[354972478,1740851446120,-500.0,0.00025751,2]
[354972480,1740851446129,-500.0,0.00025751,2]
[354972482,1740851446139,-500.0,0.00025751,2]
[354972484,1740851446149,-583.48,0.00025751,2]
[354972486,1740851446160,-500.0,0.00025751,2]
[354972488,1740851446169,-500.0,0.00025751,2]
[354972490,1740851446179,-500.0,0.00025751,2]
[354972492,1740851446189,-500.0,0.00025751,2]
[354972494,1740851446199,-500.0,0.00025751,2]
[354972496,1740851446209,-500.0,0.00025751,2]
[354972499,1740851446219,-500.0,0.00025751,2]
[354972501,1740851446231,-500.0,0.00025751,2]
[354972502,1740851446240,-500.0,0.00025751,2]
[354972504,1740851446250,-500.0,0.00025751,2]
[354972506,1740851446260,-500.0,0.00025751,2]
[354972508,1740851446269,-251.90463725,0.00025751,2]
[354972510,1740851446280,-160.0,0.00025773,2]
[354972513,1740851446290,-152.11819969,0.00025773,2]
[354972514,1740851446300,-500.0,0.00025773,2]
[354972516,1740851446311,-500.0,0.00025773,2]
[354972519,1740851446321,-500.0,0.00025773,2]
[354972521,1740851446331,-500.0,0.00025773,2]
[354972523,1740851446340,-635.54991332,0.00025773,2]
[354972525,1740851446350,-500.0,0.00025773,2]
[354972527,1740851446360,-500.0,0.00025773,2]
[354972529,1740851446369,-500.0,0.00025773,2]
[354972531,1740851446379,-500.0,0.00025773,2]
[354972533,1740851446389,-633.91496447,0.00025773,2]
[354972535,1740851446400,-500.0,0.00025773,2]
[354972537,1740851446410,-500.0,0.00025773,2]
[354972539,1740851446420,-500.0,0.00025773,2]
[354972541,1740851446430,-500.0,0.00025773,2]
[354972543,1740851446440,-297.26769267,0.00025779,2]
[354972545,1740851446450,-151.0,0.000258,10]
[354972547,1740851446460,-500.0,0.00025827,2]
[354972549,1740851446469,-500.0,0.00025827,2]
[354972551,1740851446480,-500.0,0.00025827,2]
[354972553,1740851446489,-500.0,0.00025827,2]
[354972555,1740851446499,-1041.17,0.00025827,2]
[354972557,1740851446509,-193.60664695,0.00025827,2]
[354972559,1740851446519,-500.0,0.00025827,2]
[354972561,1740851446529,-500.0,0.00025827,2]
[354972564,1740851446541,-500.0,0.00025827,2]
[354972566,1740851446551,-508.68432404,0.00025827,2]
[354972568,1740851446561,-500.0,0.00025827,2]
[354972570,1740851446571,-500.0,0.00025827,2]
[354972572,1740851446580,-797.91,0.00025827,2]
[354972574,1740851446590,-500.0,0.00025827,2]
[354972576,1740851446600,-500.0,0.00025827,2]
[354972578,1740851446610,-500.0,0.00025827,2]
[354972580,1740851446620,-540.04,0.00025827,2]
[354972582,1740851446630,-500.0,0.00025827,2]
[354972585,1740851446652,-500.0,0.00025827,2]
[354972588,1740851446665,-500.0,0.00025827,2]
[354972590,1740851446677,-500.0,0.00025827,2]
[354972592,1740851446688,-500.0,0.00025827,2]
[354972594,1740851446699,-500.0,0.00025827,2]
[354972596,1740851446710,-500.0,0.00025827,2]
[354972599,1740851446723,-500.0,0.00025827,2]
[354972601,1740851446733,-500.0,0.00025827,2]
[354972603,1740851446744,-500.0,0.00025827,2]
[354972605,1740851446755,-500.0,0.00025827,2]
[354972607,1740851446767,-500.0,0.00025827,2]
[354972609,1740851446778,-500.0,0.00025827,2]
[354972611,1740851446789,-500.0,0.00025827,2]
[354972613,1740851446799,-812.79,0.00025827,2]
[354972615,1740851446810,-500.0,0.00025827,2]
[354972617,1740851446821,-200.0,0.00025827,2]
[354972619,1740851446832,-500.0,0.00025827,2]
[354972621,1740851446843,-500.0,0.00025827,2]
[354972623,1740851446857,-500.0,0.00025827,2]
[354972625,1740851446868,-500.0,0.00025827,2]
[354972628,1740851446880,-505.98815368,0.00025827,2]
[354972630,1740851446891,-500.0,0.00025827,2]
[354972632,1740851446902,-500.0,0.00025827,2]
[354972634,1740851446912,-500.0,0.00025827,2]
[354972636,1740851446925,-500.0,0.00025827,2]
[354972638,1740851446936,-634.14130222,0.00025827,2]
[354972640,1740851446946,-500.0,0.00025827,2]
[354972642,1740851446957,-500.0,0.00025827,2]
[354972644,1740851446967,-500.0,0.00025827,2]
[354972646,1740851446979,-715.19,0.00025827,2]
[354972648,1740851446990,-500.0,0.00025827,2]
[354972650,1740851447001,-500.0,0.00025827,2]
[354972652,1740851447012,-9466.81,0.00025827,2]
[354972654,1740851447023,-500.0,0.00025827,2]
[354972656,1740851447034,-500.0,0.00025827,2]
[354972658,1740851447044,-500.0,0.00025827,2]
[354972660,1740851447055,-500.0,0.00025827,2]
[354972662,1740851447065,-500.0,0.00025827,2]
[354972664,1740851447076,-500.0,0.00025827,2]
[354972666,1740851447086,-500.0,0.00025827,2]
[354972668,1740851447097,-213.69101172,0.00025827,2]
[354972670,1740851447108,-2433.77,0.00025827,2]
[354972673,1740851447118,-587.55,0.00025827,2]
[354972675,1740851447128,-723.83,0.00025827,2]
[354972677,1740851447139,-500.0,0.00025827,2]
[354972679,1740851447149,-1014.38,0.00025827,5]
[354972681,1740851447159,-500.0,0.00025827,2]
[354972683,1740851447170,-1264.94,0.00025827,2]
[354972685,1740851447181,-500.0,0.00025827,2]
[354972687,1740851447191,-829.35,0.00025827,2]
[354972689,1740851447202,-500.0,0.00025827,2]
[354972691,1740851447212,-464.05927202,0.00025827,2]
[354972693,1740851447222,-502.32249601,0.00025827,2]
[354972695,1740851447232,-511.05097749,0.00025827,2]
[354972697,1740851447243,-500.0,0.00025827,2]
[354972699,1740851447253,-816.87,0.00025827,2]
[354972701,1740851447263,-626.31,0.00025827,2]
[354972703,1740851447274,-1171.5,0.00025827,2]
[354972705,1740851447283,-500.0,0.00025827,2]
[354972708,1740851447294,-500.0,0.00025827,2]
[354972710,1740851447304,-500.0,0.00025827,2]
[354972711,1740851447314,-500.0,0.00025827,2]
[354972713,1740851447324,-500.0,0.00025827,2]
[354972715,1740851447334,-500.0,0.00025827,2]
[354972717,1740851447345,-864.27,0.00025827,2]
[354972719,1740851447354,-500.0,0.00025827,2]
[354972721,1740851447365,-514.8,0.00025827,2]
[354972723,1740851447375,-500.0,0.00025827,2]
[354972725,1740851447385,-500.0,0.00025827,2]
[354972727,1740851447396,-500.0,0.00025827,2]
[354972729,1740851447406,-500.0,0.00025827,2]
[354972731,1740851447416,-500.0,0.00025827,2]
[354972733,1740851447426,-1322.91,0.00025827,2]
[354972735,1740851447436,-1733.35,0.00025827,2]
[354972737,1740851447447,-500.0,0.00025828,2]
[354972740,1740851447457,-500.0,0.00025828,2]
[354972742,1740851447468,-500.0,0.00025828,2]
[354972744,1740851447479,-500.0,0.00025828,2]
[354972746,1740851447488,-530.54,0.00025828,2]
[354972748,1740851447498,-500.0,0.00025828,2]
[354972750,1740851447508,-752.69,0.00025828,2]
[354972752,1740851447518,-500.0,0.00025828,2]
[354972754,1740851447528,-500.0,0.00025828,2]
[354972756,1740851447538,-500.0,0.00025828,2]
[354972758,1740851447548,-1502.54,0.00025828,2]
[354972759,1740851447559,-500.0,0.00025828,2]
[354972762,1740851447569,-1599.5,0.00025828,2]
[354972764,1740851447580,-500.0,0.00025828,2]
[354972766,1740851447590,-506.00756563,0.00025828,2]
[354972768,1740851447600,-500.0,0.00025828,2]
[354972770,1740851447611,-1898.53,0.00025828,2]
[354972772,1740851447620,-500.0,0.00025828,2]
[354972774,1740851447630,-1044.39,0.00025828,2]
[354972776,1740851447640,-500.0,0.00025828,2]
[354972777,1740851447651,-595.49,0.00025828,2]
[354972779,1740851447661,-500.0,0.00025828,2]
[354972782,1740851447671,-500.0,0.00025828,2]
[354972784,1740851447682,-500.0,0.00025828,2]
[354972786,1740851447692,-1196.8,0.00025828,2]
[354972787,1740851447702,-500.0,0.00025828,2]
[354972790,1740851447712,-1027.99,0.00025828,2]
[354972792,1740851447722,-1678.4,0.00025828,2]
[354972794,1740851447733,-500.0,0.00025828,2]
[354972796,1740851447743,-717.45,0.00025828,2]
[354972798,1740851447752,-500.0,0.00025828,2]
[354972800,1740851447762,-1274.44,0.00025828,2]
[354972802,1740851447772,-1099.11,0.00025828,2]
[354972804,1740851447782,-500.0,0.00025828,2]
[354972806,1740851447792,-500.0,0.00025828,2]
[354972808,1740851447802,-500.0,0.00025828,2]
[354972810,1740851447811,-953.91,0.00025828,2]
[354972812,1740851447822,-2774.77,0.00025828,2]
[354972814,1740851447832,-500.0,0.00025828,2]
[354972815,1740851447842,-519.14,0.00025828,2]
[354972817,1740851447857,-500.0,0.00025828,2]
[354972819,1740851447867,-500.0,0.00025828,2]
[354972821,1740851447876,-500.0,0.00025828,2]
[354972823,1740851447887,-500.0,0.00025828,2]
[354972825,1740851447897,-559.48,0.00025828,2]
[354972827,1740851447907,-500.0,0.00025828,2]
[354972829,1740851447917,-1244.96,0.00025828,2]
[354972831,1740851447928,-583.67,0.00025828,2]
[354972834,1740851447939,-1940.23,0.00025828,2]
[354972836,1740851447949,-504.56,0.00025828,2]
[354972838,1740851447958,-500.0,0.00025828,2]
[354972840,1740851447968,-1045.84,0.00025828,2]
[354972842,1740851447978,-1475.96,0.00025828,2]
[354972844,1740851447991,-1103.73,0.00025828,2]
[354972846,1740851448000,-500.0,0.00025828,2]
[354972848,1740851448011,-500.0,0.00025828,2]
[354972850,1740851448021,-500.0,0.00025828,2]
[354972852,1740851448030,-500.0,0.00025828,2]
[354972854,1740851448040,-12886.68,0.00025828,2]
[354972856,1740851448051,-1522.94,0.00025828,2]
[354972858,1740851448062,-677.46,0.00025828,2]
[354972860,1740851448072,-500.0,0.00025828,2]
[354972862,1740851448082,-500.0,0.00025828,2]
[354972864,1740851448092,-1111.66,0.00025828,2]
[354972866,1740851448101,-500.0,0.00025828,2]
[354972868,1740851448111,-6996.22,0.00025828,2]
[354972870,1740851448121,-632.69,0.00025828,2]
[354972872,1740851448131,-500.0,0.00025828,2]
[354972874,1740851448141,-500.0,0.00025828,2]
[354972876,1740851448152,-1240.89,0.00025828,2]
[354972878,1740851448164,-4245.59,0.00025828,2]
[354972880,1740851448174,-553.41,0.00025828,2]
[354972882,1740851448184,-4360.45,0.00025828,2]
[354972884,1740851448194,-1279.91,0.00025828,2]
[354972886,1740851448204,-1798.27,0.00025828,2]
[354972888,1740851448215,-6238.53,0.00025828,2]
[354972891,1740851448226,-500.0,0.00025828,2]
[354972892,1740851448236,-509.80764887,0.00025828,2]
[354972894,1740851448247,-500.0,0.00025828,2]
[354972896,1740851448257,-1015.32,0.00025828,2]
[354972899,1740851448268,-1938.1,0.00025828,2]
[354972901,1740851448278,-500.0,0.00025828,2]
[354972902,1740851448288,-1383.43,0.00025828,2]
[354972905,1740851448298,-778.39,0.00025828,2]
[354972907,1740851448308,-774.93,0.00025828,2]
[354972916,1740851448408,-500.0,0.00025828,2]
[354972918,1740851448418,-500.0,0.00025828,2]
[354972920,1740851448430,-2938.37,0.00025828,2]
[354972922,1740851448440,-1593.16,0.00025828,2]
[354972924,1740851448449,-1179.85,0.00025828,2]
[354972926,1740851448458,-5284.2,0.00025828,2]
[354972928,1740851448468,-500.0,0.00025828,2]